bitfinex/quotes_ETHUSD_20260208
["timestamp","ask_amount","ask_price","bid_price","bid_amount"]
[1770555009996,4.43842838,2137.8,2136.8,1.70585236]
[1770555010413,3.269,2137.8,2136.8,1.70585236]
[1770555010712,4.43842816,2137.8,2136.8,1.70585236]
[1770555010916,4.43842816,2137.8,2136.9,1.16991904]
[1770555011125,4.43842792,2137.8,2137.0,1.70585236]
[1770555011690,1.17036013,2138.0,2137.1,1.70695236]
[1770555012993,0.001,2137.5,2137.1,0.0011]
[1770555022006,1.64855136,2137.5,2136.5,2.89058324]
[1770555023503,1.64855136,2137.5,2136.6,0.0011]
[1770555024211,1.16964536,2137.4,2136.6,0.0011]
[1770555024724,1.64755136,2137.3,2136.6,0.0011]
[1770555025111,1.16964536,2137.4,2136.6,1.72158576]
[1770555025307,0.001,2137.3,2136.6,1.72158576]
[1770555027731,0.001,2137.3,2136.8,0.5]
[1770555027913,1.64855136,2137.3,2136.8,0.5]
[1770555028108,1.64855136,2137.3,2136.8,0.0011]
[1770555028314,0.001,2137.3,2136.8,0.0011]
[1770555031849,0.001,2137.3,2136.3,1.17131319]
[1770555032035,0.001,2137.3,2136.4,1.72158576]
[1770555033629,1.17070008,2137.3,2136.5,1.17013807]
[1770555034018,1.17070008,2137.3,2136.5,2.89062383]
[1770555034670,0.001,2137.3,2136.6,1.72158576]
[1770555034852,0.001,2137.3,2136.8,1.72048576]
[1770555035015,0.001,2137.3,2136.9,0.0011]
[1770555035220,0.001,2137.3,2136.8,1.72048576]
[1770555035836,0.001,2137.3,2136.8,2.89043285]
[1770555036248,0.001,2137.3,2136.8,1.16994709]
[1770555036449,0.001,2137.3,2136.9,1.69178843]
[1770555037949,1.67798092,2137.3,2136.3,1.17133911]
[1770555038427,1.67798092,2137.3,2136.3,0.0011]
[1770555040531,2.84673573,2137.2,2136.3,0.0011]
[1770555042025,1.71921858,2137.1,2136.0,0.0011]
[1770555042230,1.67698092,2136.9,2136.0,0.0011]
[1770555042844,1.67698092,2136.7,2136.0,0.0011]
[1770555045053,1.1700833,2136.6,2135.9,0.0008]
[1770555045355,1.67698092,2136.3,2135.6,0.0011]
[1770555045556,3.27,2136.2,2135.6,0.0011]
[1770555045755,3.27,2136.2,2135.6,1.69288843]
[1770555046064,6.11706422,2136.6,2135.6,0.0011]
[1770555046240,4.4400833,2136.6,2135.6,0.0011]
[1770555046436,6.11706422,2136.6,2135.6,0.0011]
[1770555047662,1.67698092,2136.2,2135.6,0.0011]
[1770555047860,1.67698092,2136.2,2135.4,0.0011]
[1770555048062,1.67698092,2136.2,2135.3,0.0011]
[1770555048857,1.67698092,2136.2,2135.8,0.0011]
[1770555049063,1.67698092,2136.2,2135.3,0.0011]
[1770555049366,1.67698092,2136.0,2135.5,0.0011]
[1770555049550,3.27,2135.9,2135.5,0.0011]
[1770555050249,3.27,2135.9,2135.3,0.0011]
[1770555051661,1.17052158,2135.8,2135.3,0.0011]
[1770555053066,2.8475025,2135.8,2135.2,0.0011]
[1770555053267,1.17052158,2135.8,2135.2,0.0011]
[1770555053567,1.67698092,2135.7,2134.9,0.001]
[1770555053864,1.1706312,2135.6,2134.9,0.001]
[1770555057653,1.1706312,2135.6,2134.9,1.69278843]
[1770555057857,7.95189181,2135.9,2135.1,1.69178843]
[1770555057858,1.17052158,2135.8,2135.1,1.69178843]
[1770555058062,1.77938092,2135.6,2134.7,0.0011]
[1770555058371,1.21275924,2135.8,2134.7,1.69288843]
[1770555058557,1.67698092,2135.7,2134.7,1.69288843]
[1770555058752,1.67698092,2135.7,2134.7,2.86398486]
[1770555059068,1.17052158,2135.8,2134.8,1.69178843]
[1770555061268,1.17052158,2135.8,2134.9,0.0011]
[1770555061468,1.67698092,2135.7,2134.9,0.0011]
[1770555061680,1.67698092,2134.6,2133.3,1.69178843]
[1770555061887,2.84838003,2134.2,2133.2,0.001]
[1770555062085,0.24374786,2133.4,2133.2,0.001]
[1770555062249,3.272,2133.9,2133.2,0.001]
[1770555063293,3.272,2133.9,2133.2,1.69278843]
[1770555064161,4.44360773,2133.9,2133.2,0.001]
[1770555064880,4.44360773,2133.9,2133.0,1.17305248]
[1770555065077,4.44360773,2133.9,2133.0,0.001]
[1770555065472,4.44360773,2133.9,2133.1,1.17199952]
[1770555065666,4.44360773,2133.9,2133.0,2.86480916]
[1770555066507,1.75721525,2133.6,2132.6,0.001]
[1770555066676,1.75721525,2132.4,2130.8,1.76584534]
[1770555066862,0.24348462,2131.4,2131.0,1.76584534]
[1770555067066,3.273,2132.3,2131.0,1.76584534]
[1770555067294,3.273,2132.3,2131.1,1.808083]
[1770555067884,3.273,2132.2,2131.1,1.808083]
[1770555068075,3.273,2132.2,2131.1,1.76584534]
[1770555068273,3.273,2132.2,2130.9,1.17321319]
[1770555068671,1.17255288,2132.1,2130.9,1.17321319]
[1770555068873,4.44553374,2132.2,2131.0,1.76584534]
[1770555069073,4.44553374,2132.2,2130.9,1.21545085]
[1770555069074,3.273,2132.2,2131.3,1.76584534]
[1770555069278,3.273,2132.2,2131.5,1.76584534]
[1770555069996,1.172223,2132.7,2131.6,1.808083]
[1770555070797,1.17220798,2132.8,2131.8,1.76584534]
[1770555072869,1.17220798,2132.8,2131.8,2.93853231]
[1770555073784,1.17220798,2132.8,2131.6,0.0011]
[1770555073983,1.71647593,2132.7,2131.6,0.0011]
[1770555074214,1.71647593,2132.7,2131.6,1.17387702]
[1770555075115,1.17227797,2132.6,2131.5,4.6914566]
[1770555076015,1.17227797,2132.6,2131.6,1.70404502]
[1770555076395,1.17227797,2132.6,2131.5,1.17288294]
[1770555077292,4.68902022,2132.7,2131.4,6.39683734]
[1770555078417,3.276,2133.2,2131.9,1.70404502]
[1770555079391,0.001,2133.7,2132.5,1.70404502]
[1770555079609,0.001,2133.7,2132.7,1.70404502]
[1770555080421,0.001,2133.7,2132.8,3.94848602]
[1770555080622,0.001,2133.7,2132.8,1.70404502]
[1770555081417,0.001,2133.7,2132.9,1.17211308]
[1770555082129,0.001,2133.7,2132.9,2.8761581]
[1770555083220,0.001,2133.7,2133.0,1.70404502]
[1770555083417,0.001,2133.7,2133.1,1.17200318]
[1770555083815,0.001,2133.7,2133.1,2.8760482]
[1770555084019,0.001,2133.7,2133.2,1.70404502]
[1770555085424,0.001,2133.7,2133.3,1.17189331]
[1770555085721,0.001,2133.5,2133.3,1.17189331]
[1770555086326,1.75871359,2133.4,2131.8,0.0011]
[1770555086537,1.75871359,2132.7,2131.5,0.0011]
[1770555086751,0.04223766,2132.4,2131.5,0.0011]
[1770555086922,1.75871359,2132.4,2131.5,0.0011]
[1770555087222,1.75871359,2132.4,2131.1,1.17309399]
[1770555087425,0.5,2132.5,2131.1,1.17309399]
[1770555087630,1.17238791,2132.4,2131.1,1.17309399]
[1770555088833,1.21462557,2132.4,2131.1,1.17309399]
[1770555090427,1.71647593,2132.3,2131.1,1.17309399]
[1770555091914,1.17238791,2132.4,2131.1,1.17309399]
[1770555092123,1.17260787,2132.0,2131.1,1.17309399]
[1770555093312,1.17259514,2132.1,2131.2,1.70404502]
[1770555094007,1.17233294,2132.5,2131.2,1.70404502]
[1770555094336,1.17233294,2132.5,2131.3,1.172993]
[1770555094835,1.17233294,2132.5,2131.3,2.87703802]
[1770555095332,2.88880887,2132.5,2131.3,1.172993]
[1770555096035,1.64844913,2132.4,2131.2,1.17301386]
[1770555096446,1.1724429,2132.3,2131.0,1.17315814]
[1770555097022,2.77865437,2132.3,2131.0,1.17315814]
[1770555097237,0.5,2132.1,2131.0,1.17315814]
[1770555097438,0.5,2132.1,2131.4,0.0011]
[1770555097610,0.5,2132.1,2131.0,1.17315814]
[1770555097813,0.5,2132.1,2131.1,0.0011]
[1770555098446,1.17260787,2132.0,2131.1,0.0011]
[1770555098612,0.04223766,2131.5,2130.7,0.0011]
[1770555098806,1.64844913,2131.8,2130.5,0.0011]
[1770555099006,0.04223766,2131.5,2130.5,0.0011]
[1770555099221,1.60621147,2131.6,2130.5,0.0011]
[1770555099222,1.64844913,2131.6,2130.5,0.0011]
[1770555100942,1.17288294,2131.5,2130.5,0.0011]
[1770555101142,2.77909441,2131.5,2130.5,0.0011]
[1770555105152,1.60621147,2131.4,2130.5,0.0011]
[1770555105332,1.172993,2131.3,2130.5,0.0011]
[1770555106325,1.60621147,2131.1,2130.3,0.0011]
[1770555106529,1.172993,2131.3,2130.3,0.0011]
[1770555106849,1.172993,2131.3,2130.3,1.61965167]
[1770555107222,1.27522792,2131.6,2130.3,2.79314241]
[1770555108948,1.27522792,2131.6,2130.4,1.61855167]
[1770555109150,1.17260787,2132.0,2130.9,1.61855167]
[1770555109453,1.60621147,2131.9,2130.8,3.278]
[1770555110450,1.17260787,2132.0,2130.8,6.0698013]
[1770555110927,1.17260787,2132.0,2130.9,1.61855167]
[1770555111348,1.17260787,2132.0,2130.9,2.79172977]
[1770555111940,1.17260787,2132.0,2131.0,1.61855167]
[1770555112533,1.6725895,2132.1,2131.0,1.61855167]
[1770555112947,1.1725895,2132.1,2131.0,1.61855167]
[1770555114258,1.60721147,2132.2,2131.0,1.61855167]
[1770555114553,1.60721147,2132.2,2131.0,2.79169557]
[1770555114769,1.64844913,2132.0,2130.6,2.79192719]
[1770555115063,1.64844913,2132.0,2130.6,1.61855167]
[1770555115628,1.64844913,2132.0,2130.6,2.79189883]
[1770555116228,1.64844913,2132.0,2130.6,1.61855167]
[1770555116466,2.77887435,2131.9,2130.6,1.61855167]
[1770555116764,2.77887435,2131.9,2130.6,2.79191853]
[1770555116967,1.17266288,2131.9,2130.7,1.61855167]
[1770555117564,1.17266288,2131.9,2131.1,1.61855167]
[1770555117763,1.17266288,2131.9,2131.2,4.89655167]
[1770555118063,1.17265016,2132.0,2131.2,4.89655167]
[1770555118368,0.001,2132.2,2131.2,6.06955983]
[1770555119269,0.001,2132.2,2131.3,1.61855167]
[1770555120476,0.001,2132.2,2131.5,1.61855167]
[1770555120648,4.68889485,2132.7,2131.7,1.61855167]
[1770555120844,1.17211308,2132.9,2131.7,1.61855167]
[1770555122548,0.001,2132.0,2131.7,2.79128571]
[1770555122742,6.29444814,2133.0,2131.7,2.79128571]
[1770555123172,6.29444814,2133.0,2131.8,1.61855167]
[1770555123358,4.68823667,2133.0,2131.8,1.61855167]
[1770555125278,6.29444814,2133.0,2131.9,3.278]
[1770555126078,4.73069,2133.3,2131.9,3.278]
[1770555126079,1.17189331,2133.3,2132.2,1.61659143]
[1770555126779,1.17189331,2133.3,2131.8,1.17267147]
[1770555126780,1.66686077,2133.2,2131.8,1.17267147]
[1770555126981,1.66686077,2133.2,2132.0,1.61659143]
[1770555127148,1.17200318,2133.1,2132.2,1.61659143]
[1770555127575,4.68742262,2133.4,2132.2,1.61659143]
[1770555128346,6.35428339,2133.4,2132.2,1.61659143]
[1770555128548,1.70909843,2133.3,2132.0,1.17260088]
[1770555128756,1.70909843,2133.3,2131.9,4.44962274]
[1770555128982,1.70909843,2133.3,2131.9,6.06621417]
[1770555129465,1.17194824,2133.2,2132.0,1.17260605]
[1770555129866,2.83880901,2133.2,2132.0,1.17260605]
[1770555130071,2.83880901,2133.2,2131.9,6.06621403]
[1770555130971,1.63101462,2133.1,2131.9,6.06621403]
[1770555131161,1.63101462,2133.1,2131.9,4.4496226]
[1770555131370,4.68999155,2132.3,2130.8,1.58382497]
[1770555131552,4.68999155,2132.3,2131.0,1.58382497]
[1770555132057,1.63101462,2132.2,2130.7,3.2781]
[1770555132392,1.63101462,2132.2,2130.7,4.86192497]
[1770555133058,1.63101462,2132.2,2130.8,1.58382497]
[1770555133254,4.68999155,2132.3,2131.0,1.58382497]
[1770555133449,6.32100617,2132.3,2131.0,1.58382497]
[1770555134076,4.68999155,2132.3,2130.9,1.58382497]
[1770555134291,4.68999155,2132.3,2130.7,3.2781]
[1770555134292,1.63101462,2132.2,2130.7,4.45138614]
[1770555134460,1.63101462,2132.2,2130.8,1.17326016]
[1770555134793,1.67325228,2132.1,2130.7,4.45138688]
[1770555134984,1.67325228,2132.1,2132.0,0.0011]
[1770555135158,1.67325228,2132.1,2130.8,1.17326567]
[1770555135361,1.67325228,2132.1,2131.1,0.0011]
[1770555135683,1.63101462,2131.9,2131.1,0.0011]
[1770555136062,1.63101462,2131.8,2131.1,0.0011]
[1770555136281,1.63101462,2131.8,2130.7,3.2781]
[1770555137455,1.17260787,2132.0,2130.8,1.58382497]
[1770555137658,1.17260787,2132.0,2131.0,1.58382497]
[1770555138779,4.6897716,2132.4,2131.2,1.58382497]
[1770555139564,4.68937041,2132.7,2131.3,2.75681797]
[1770555140684,1.17216804,2132.8,2131.3,2.75681797]
[1770555141293,1.17216804,2132.8,2131.4,1.58382497]
[1770555141499,2.80318266,2132.8,2131.5,3.278]
[1770555142092,1.67325228,2132.1,2130.8,1.58382497]
[1770555142290,1.67325228,2132.1,2130.8,2.75709065]
[1770555142491,1.67325228,2132.1,2130.7,0.0011]
[1770555142691,1.67325228,2132.1,2130.7,1.17442114]
[1770555143112,1.67325228,2132.1,2130.7,0.0011]
[1770555143997,1.17260787,2132.0,2130.7,0.0011]
[1770555144981,1.63101462,2131.9,2130.7,0.0011]
[1770555146407,1.17271789,2131.8,2130.7,0.0011]
[1770555146990,1.17271789,2131.8,2130.9,0.0011]
[1770555148520,1.63101462,2132.7,2131.1,1.58382497]
[1770555148692,1.17255288,2132.2,2131.1,1.58382497]
[1770555149898,1.17255288,2132.2,2131.3,1.58382497]
[1770555150090,1.17255288,2132.2,2131.5,1.58382497]
[1770555150887,1.63201462,2132.6,2131.4,3.278]
[1770555151091,0.04223766,2132.3,2131.4,3.278]
[1770555151614,1.67325228,2132.3,2131.4,3.278]
[1770555152016,1.63201462,2132.6,2131.4,3.278]
[1770555152326,0.04223766,2132.4,2131.4,3.278]
[1770555152519,1.63201462,2132.6,2131.4,3.278]
[1770555152909,2.80334756,2132.5,2131.4,3.278]
[1770555154725,1.17233294,2132.5,2131.4,3.278]
[1770555154916,0.04223766,2132.0,2131.0,2.75697554]
[1770555155121,1.17266288,2131.9,2131.0,2.75697554]
[1770555155831,1.17266288,2131.9,2131.0,1.58382497]
[1770555156128,1.17266288,2131.9,2130.9,0.0011]
[1770555156328,1.17266288,2131.9,2130.9,1.17430484]
[1770555156708,1.17266288,2131.9,2130.9,0.0011]
[1770555158530,1.17266288,2131.9,2130.9,1.69257408]
[1770555159120,4.69065153,2132.0,2131.1,0.0011]
[1770555159518,0.1024,2131.9,2130.9,1.69257408]
[1770555159856,4.69065153,2132.0,2131.0,1.69147408]
[1770555160626,1.17233294,2132.5,2131.2,1.69147408]
[1770555160813,1.17233294,2132.5,2130.9,1.21651599]
[1770555160814,1.17233294,2132.5,2131.4,0.04223766]
[1770555161015,1.17233294,2132.5,2131.6,1.69147408]
[1770555161534,0.001,2132.6,2131.7,2.86424698]
[1770555161710,0.001,2132.6,2131.8,1.69147408]
[1770555163426,0.001,2132.6,2131.9,2.86413696]
[1770555164943,0.001,2132.6,2131.4,0.04223766]
[1770555164944,1.5920613,2132.0,2130.9,0.0011]
[1770555165141,1.5920613,2132.0,2129.7,1.69147408]
[1770555165142,0.1024,2131.1,2129.7,1.69147408]
[1770555165446,2.52249379,2130.2,2130.1,4.24020721]
[1770555165619,1.00899751,2130.2,2130.1,3.38406409]
[1770555165813,1.00899751,2130.2,2129.7,1.17385157]
[1770555166020,3.53166943,2130.1,2129.6,0.0011]
[1770555166438,5.37753085,2130.7,2129.9,1.17372254]
[1770555166614,1.17337453,2130.7,2130.0,1.17480027]
[1770555166935,1.17321319,2130.9,2130.0,0.0011]
[1770555167360,4.20415632,2131.1,2130.1,6.14312007]
[1770555167532,5.88238158,2131.4,2130.1,6.14312007]
[1770555167533,4.69211844,2131.3,2130.3,0.04223766]
[1770555167922,4.69183437,2131.4,2130.3,0.04223766]
[1770555168729,1.17293797,2131.5,2130.3,1.73371174]
[1770555168730,4.69160734,2131.5,2130.3,1.73371174]
[1770555169447,1.172993,2131.3,2130.1,4.45164599]
[1770555169858,1.17296032,2131.4,2130.2,1.73371174]
[1770555170338,1.5920613,2130.6,2129.4,0.0019]
[1770555170534,0.2453,2129.2,2128.6,1.17446094]
[1770555170853,0.2453,2129.2,2129.0,0.2452778]
[1770555171041,0.2453,2129.2,2128.6,1.17446094]
[1770555171451,0.2453,2129.2,2128.4,3.40053605]
[1770555171756,0.2453,2129.2,2128.4,1.17458722]
[1770555174644,0.2453,2129.2,2128.4,2.8660613]
[1770555174953,1.5920613,2130.2,2128.6,1.73371174]
[1770555174954,4.69480557,2130.1,2128.6,1.73371174]
[1770555175257,4.69480557,2130.1,2128.7,4.97501]
[1770555175436,4.69480557,2130.1,2128.8,1.17437053]
[1770555176048,1.17365381,2130.1,2128.8,1.17437053]
[1770555176238,1.17365381,2130.1,2128.9,0.04223766]
[1770555176437,4.69384697,2130.5,2129.0,3.28]
[1770555176438,1.17348854,2130.5,2129.0,3.28]
[1770555176947,2.76554984,2130.5,2129.0,3.28]
[1770555177153,2.76554984,2130.5,2129.2,0.04223766]
[1770555177646,2.76554984,2130.5,2129.3,1.17409477]
[1770555177968,2.76554984,2130.5,2129.2,1.17414727]
[1770555178165,1.5920613,2130.4,2129.2,1.17414727]
[1770555178675,1.5920613,2130.4,2129.0,3.28]
[1770555179150,1.5920613,2130.2,2129.0,4.45425453]
[1770555179476,1.5920613,2130.2,2129.0,3.28]
[1770555179787,1.5920613,2130.2,2129.0,4.4542412]
[1770555179792,1.17365381,2130.1,2129.0,4.4542412]
[1770555181786,2.76549476,2130.5,2129.0,4.4542412]
[1770555181988,1.17341563,2130.6,2129.5,0.04223766]
[1770555182557,1.17341563,2130.6,2129.5,1.73371174]
[1770555183193,2.86750934,2131.3,2129.6,6.392276]
[1770555183491,6.28435829,2131.2,2129.8,0.04223766]
[1770555183863,0.001,2130.4,2129.8,1.17378755]
[1770555185994,0.001,2130.4,2129.9,3.28]
[1770555188290,0.001,2130.4,2129.9,4.45373645]
[1770555190691,1.1731377,2131.1,2130.0,1.68895707]
[1770555191102,1.17308561,2131.2,2130.0,1.68895707]
[1770555192304,4.69205537,2131.3,2130.1,1.17365381]
[1770555192601,4.69205537,2131.3,2130.1,2.86261088]
[1770555193211,1.68787109,2131.2,2130.0,1.17370372]
[1770555193410,1.68787109,2131.2,2130.2,3.28]
[1770555194276,4.19884079,2131.1,2130.3,3.28]
[1770555194487,4.19884079,2131.1,2130.2,3.28]
[1770555194488,2.86102923,2131.0,2130.2,3.28]
[1770555194974,4.69205537,2131.3,2130.2,3.28]
[1770555194975,1.68787109,2131.3,2130.2,3.28]
[1770555195180,4.69221363,2131.2,2130.3,1.17354086]
[1770555196316,0.001,2131.0,2130.3,1.17354086]
[1770555198217,0.001,2131.0,2130.2,4.45355712]
[1770555198584,0.001,2131.0,2130.3,3.28]
[1770555200706,0.001,2131.0,2130.3,4.45354162]
[1770555204940,1.68887109,2131.0,2129.4,1.68951009]
[1770555205221,1.68887109,2131.0,2130.1,1.17361726]
[1770555205424,1.68887109,2131.0,2129.9,1.17376041]
[1770555205798,1.68887109,2131.0,2129.9,1.1737633]
[1770555206012,1.68887109,2131.0,2130.0,1.17370887]
[1770555206211,1.68887109,2131.0,2130.1,3.28]
[1770555206899,2.86108428,2130.9,2130.1,3.28]
[1770555207623,1.17321319,2130.9,2130.1,4.45363573]
[1770555208020,2.86108428,2130.9,2130.1,3.28]
[1770555208222,1.68787109,2130.8,2130.1,3.28]
[1770555208704,1.68887109,2130.8,2130.1,3.28]
[1770555209106,1.17332332,2130.7,2130.1,3.28]
[1770555209318,2.86119441,2130.7,2130.1,3.28]
[1770555209504,1.17332332,2130.7,2130.1,3.28]
[1770555211213,0.001,2130.8,2130.2,1.68841009]
[1770555211735,0.001,2130.8,2130.2,1.73064775]
[1770555213102,0.001,2130.8,2130.4,1.68841009]
[1770555213321,0.001,2131.0,2130.4,1.68841009]
[1770555213529,1.17288294,2131.5,2130.5,3.405713]
[1770555213735,1.17288294,2131.5,2130.5,2.182297]
[1770555213920,1.17288294,2131.5,2130.4,1.68841009]
[1770555214530,1.17288294,2131.5,2130.5,2.441244]
[1770555214738,1.17288294,2131.5,2130.4,1.68841009]
[1770555215037,1.17286653,2131.6,2130.5,0.04223766]
[1770555215226,2.86073762,2131.6,2130.5,1.17343346]
[1770555215416,1.68787109,2131.5,2130.5,1.17343346]
[1770555215614,1.73010875,2131.1,2129.6,1.17499968]
[1770555215842,1.73010875,2131.1,2129.6,1.17502653]
[1770555216043,1.75880729,2130.6,2129.6,1.17502653]
[1770555217543,1.17343346,2130.5,2129.6,0.0011]
[1770555219525,2.93224075,2130.5,2129.6,0.0011]
[1770555220059,1.75880729,2130.4,2129.6,0.0011]
[1770555220425,1.75880729,2130.4,2129.8,0.0011]
[1770555220749,1.75880729,2130.4,2129.6,0.0011]
[1770555221750,1.17354363,2130.3,2129.6,0.0011]
[1770555223226,1.17337839,2130.6,2129.6,0.0011]
[1770555223727,4.69349405,2130.7,2129.6,0.0011]
[1770555226039,1.75880729,2130.6,2129.6,0.0011]
[1770555228772,1.17343346,2130.5,2129.6,1.17502937]
[1770555230474,2.93224075,2130.5,2129.6,1.17502937]
[1770555230868,1.17343346,2130.5,2129.6,0.0011]
[1770555232896,1.17343346,2130.5,2129.8,0.0011]
[1770555233485,1.17332332,2130.7,2129.8,1.60477896]
[1770555235253,4.69427998,2130.8,2129.8,1.60477896]
[1770555235254,1.75980729,2130.8,2129.9,1.17376402]
[1770555238485,1.17332332,2130.7,2129.9,1.17376402]
[1770555239676,1.17332332,2130.7,2129.9,2.77744298]
[1770555240480,1.17430534,2130.8,2130.0,1.60367896]
[1770555240655,0.001,2130.8,2130.1,4.45365381]
[1770555240857,1.17306257,2131.2,2130.3,0.04223766]
[1770555241078,1.75880729,2131.1,2130.1,2.77733277]
[1770555241285,1.75880729,2130.9,2130.2,3.28]
[1770555241676,1.80104495,2130.7,2129.8,0.0011]
[1770555241881,1.80104495,2130.7,2129.9,3.28]
[1770555242377,1.75880729,2130.7,2129.9,3.28]
[1770555242892,1.17337839,2130.6,2129.9,3.28]
[1770555243259,1.75880729,2131.0,2129.9,4.45375725]
[1770555243463,4.69294942,2130.9,2129.9,6.05743621]
[1770555244291,0.001,2130.5,2129.9,6.05743621]
[1770555244600,1.17304804,2131.2,2130.1,1.60367896]
[1770555244899,1.75880729,2131.2,2130.2,1.17359872]
[1770555245684,1.75880729,2131.2,2130.1,1.17361655]
[1770555245883,1.65726577,2131.0,2129.9,4.45372157]
[1770555246086,1.65726577,2131.0,2130.2,1.17359872]
[1770555246291,1.65726577,2131.0,2129.9,7.97498552]
[1770555246599,1.65726577,2131.3,2130.1,2.95602095]
[1770555246894,1.17304804,2131.2,2130.1,2.95602095]
[1770555247097,2.83031381,2131.2,2130.1,2.95602095]
[1770555247499,1.65726577,2131.1,2129.9,7.97500814]
[1770555247797,1.65726577,2130.8,2129.9,3.28]
[1770555248705,1.65726577,2130.6,2129.9,3.28]
[1770555249866,1.65726577,2130.6,2129.9,4.45375761]
[1770555250091,1.65726577,2130.6,2129.9,3.28]
[1770555251375,1.65726577,2130.9,2129.9,4.45376333]
[1770555251576,1.65726577,2130.9,2129.9,3.28]
[1770555251776,1.65726577,2130.9,2129.8,1.1748764]
[1770555251997,1.65726577,2130.4,2129.8,0.0011]
[1770555253410,1.67321274,2130.7,2129.8,0.0011]
[1770555253602,2.84659113,2130.6,2129.8,0.0011]
[1770555253811,1.17337839,2130.6,2129.8,0.0011]
[1770555254711,1.17337839,2130.6,2129.9,3.28]
[1770555254902,1.67321274,2130.9,2129.9,3.28]
[1770555254903,1.17326825,2130.8,2129.9,3.28]
[1770555255420,4.69216443,2131.3,2130.0,1.74374397]
[1770555255614,4.69173442,2131.5,2130.2,1.74374397]
[1770555255615,4.69159114,2131.5,2130.2,1.74374397]
[1770555255815,4.69159114,2131.5,2130.4,1.74374397]
[1770555256806,0.001,2130.8,2130.4,1.74374397]
[1770555257003,4.69159114,2131.5,2130.4,1.74374397]
[1770555257417,1.67321274,2131.4,2130.1,1.17365381]
[1770555257619,1.67321274,2131.4,2130.1,2.91739778]
[1770555257800,2.84620574,2131.3,2130.2,2.093603]
[1770555258411,2.84620574,2131.3,2130.2,1.74374397]
[1770555258786,1.172993,2131.3,2130.4,1.74374397]
[1770555258994,2.84613818,2131.5,2130.4,1.74374397]
[1770555259821,1.67321274,2131.4,2130.5,1.17343346]
[1770555259991,1.67321274,2131.4,2130.6,3.28]
[1770555262115,2.84620574,2131.3,2130.6,3.28]
[1770555262892,1.67321274,2131.2,2130.6,3.28]
[1770555264214,1.67321274,2131.2,2130.6,4.45337497]
[1770555264415,2.84628074,2131.2,2130.6,4.45337497]
[1770555264617,1.1738111,2131.7,2130.6,6.19711894]
[1770555264992,1.1738111,2131.7,2130.7,1.74374397]
[1770555265690,0.001,2131.7,2130.7,1.74374397]
[1770555265894,1.17377374,2131.7,2130.7,1.74374397]
[1770555266091,0.001,2131.7,2130.8,2.91701222]
[1770555267219,0.001,2131.7,2130.9,1.74374397]
[1770555267719,0.001,2131.7,2130.8,1.17326825]
[1770555268830,1.67321274,2131.6,2130.8,0.0011]
[1770555269034,1.67321274,2131.4,2130.8,0.0011]
[1770555270502,1.67321274,2131.4,2130.6,3.28]
[1770555270697,1.172993,2131.3,2130.6,3.28]
[1770555271227,2.84620574,2131.3,2130.6,3.28]
[1770555273128,1.67321274,2131.2,2130.6,3.28]
[1770555273806,1.172993,2131.3,2130.6,3.28]
[1770555274931,1.67321274,2131.0,2130.0,1.17480234]
[1770555275230,1.67321274,2130.8,2130.0,0.0011]
[1770555276932,2.88903823,2131.5,2130.3,1.70204276]
[1770555277137,1.71511537,2131.4,2130.4,0.04223766]
[1770555277426,1.71511537,2131.4,2130.4,3.279]
[1770555278230,1.71511537,2131.4,2130.3,4.45253829]
[1770555278408,1.71511537,2131.4,2130.3,4.45254219]
[1770555279334,1.172993,2131.3,2130.3,4.45254219]
[1770555279918,1.172993,2131.3,2130.3,6.11234729]
[1770555280323,2.88810837,2131.3,2130.3,4.45254219]
[1770555281729,1.71511537,2131.2,2130.3,3.279]
[1770555282319,1.71511537,2131.0,2130.3,3.279]
[1770555282718,1.71511537,2130.8,2130.2,0.0011]
[1770555283538,1.17337839,2130.6,2130.2,0.0011]
[1770555284243,1.17337839,2130.6,2129.4,0.43482078]
[1770555284244,1.71511537,2129.8,2129.4,0.43482078]
[1770555284460,1.71511537,2129.8,2129.1,0.43702078]
[1770555284613,1.75735303,2129.7,2128.9,0.0011]
[1770555284938,1.71511537,2129.7,2128.9,0.0011]
[1770555285528,4.69516088,2129.9,2128.9,0.0011]
[1770555285927,4.69516088,2129.9,2128.9,1.6609051]
[1770555287439,4.6950561,2130.1,2128.9,0.0011]
[1770555287737,1.75735303,2130.0,2128.9,0.0011]
[1770555288427,1.71511537,2130.0,2128.9,0.0011]
[1770555289328,0.5,2129.8,2128.9,0.0011]
[1770555289720,1.17387425,2129.7,2128.9,0.0011]
[1770555291364,1.71511537,2129.6,2128.9,0.0011]
[1770555291855,2.88909987,2129.5,2128.9,0.0011]
[1770555292051,1.71511537,2129.4,2128.9,0.0011]
[1770555292242,1.71511537,2129.4,2128.7,0.0011]
[1770555292550,1.1739845,2129.5,2128.7,0.0011]
[1770555292551,1.75735303,2129.3,2128.7,0.0011]
[1770555292751,1.71511537,2129.3,2128.7,0.0011]
[1770555293952,2.88926528,2129.2,2129.1,0.0011]
[1770555294129,2.88926528,2129.2,2128.5,0.0011]
[1770555294436,2.88926528,2129.2,2128.9,0.0011]
[1770555294636,1.17387335,2129.8,2129.0,4.9408051]
[1770555295158,1.17387335,2129.8,2129.0,3.281]
[1770555296044,6.40973914,2130.1,2129.0,3.281]
[1770555296561,1.71511537,2130.0,2129.0,3.281]
[1770555298559,1.17376402,2129.9,2129.0,3.281]
[1770555298931,1.17376402,2129.9,2129.0,1.17425747]
[1770555299130,1.75735303,2129.8,2128.9,0.0011]
[1770555299433,1.71511537,2129.8,2128.9,0.0011]
[1770555300655,1.17387425,2129.7,2128.9,0.0011]
[1770555302866,2.88898962,2129.7,2128.9,0.0011]
[1770555304366,0.5,2129.5,2128.9,0.0011]
[1770555305064,1.17403963,2129.4,2128.9,0.0011]
[1770555305643,1.67402355,2129.5,2128.9,0.0011]
[1770555305843,1.67399882,2129.5,2128.9,1.6609051]
[1770555306051,1.81078964,2129.2,2128.5,0.0011]
[1770555307268,1.17420506,2129.1,2128.5,0.0011]
[1770555309640,2.98482927,2129.4,2128.6,3.222]
[1770555309971,1.81078964,2129.3,2128.5,0.0011]
[1770555310957,1.81078964,2128.7,2128.0,0.0011]
[1770555311153,1.81078964,2128.8,2127.4,1.17510291]
[1770555311351,1.17453605,2128.5,2127.4,1.67536731]
[1770555311650,2.98532569,2128.5,2127.4,1.67536731]
[1770555311846,1.81078964,2128.4,2127.3,2.809]
[1770555312152,1.81078964,2128.4,2127.2,1.17522528]